[Event "German-ch Blitz Women 2022"]
[Site "Magdeburg"]
[Date "2022.08.13"]
[Round "22.12"]
[White "Zschischang, Marine"]
[Black "Staerk, Elisa"]
[Result "0-1"]
[ECO "A48"]
[WhiteElo "2083"]
[BlackElo "1947"]
[Annotator "NA RC"]
[PlyCount "75"]
[EventDate "2022.08.10"]
[EventType "tourn"]
[EventCountry "GER"]
[SourceTitle "playchess.com"]
[Source "ChessBase"]
[SourceQuality "1"]
[TimeControl "180+2"]

1. d4 {[%emt 0:00:00]} Nf6 {[%emt 0:00:01]} 2. Nf3 {[%emt 0:00:01]} g6 {[%emt 0:00:00]} 3. Nc3 {[%emt 0:00:03]} d5 {[%emt 0:00:01]} 4. Bf4 {[%emt 0:00:01]} Bg7 {[%emt 0:00:01]} 5. e3 {[%emt 0:00:01]} a6 6. Be2 {[%emt 0:00:03]} O-O {[%emt 0:00:02]} 7. Ne5 {[%emt 0:00:00]} Nbd7 {[%emt 0:00:03]} 8. h4 {[%emt 0:00:02]} h5 {[%emt 0:00:02]} 9. f3 {[%emt 0:00:02]} c5 {[%emt 0:00:05]} 10. g4 {[%emt 0:00:09]} cxd4 {[%emt 0:00:07]} 11. exd4 {[%emt 0:00:02]} Nxe5 {[%emt 0:00:17]} 12. Bxe5 {[%emt 0:00:02]} b5 {[%emt 0:00:29]} 13. gxh5 {[%emt 0:00:36]} Nxh5 {[%emt 0:00:03]} 14. Bxg7 {[%emt 0:00:03]} Kxg7 {[%emt 0:00:03]} 15. Qd2 {[%emt 0:00:10]} Bf5 {[%emt 0:00:19]} 16. Bd3 {[%emt 0:00:22]} Bxd3 {[%emt 0:00:12]} 17. Qxd3 {[%emt 0:00:08]} b4 {[%emt 0:00:13]} 18. Ne2 {[%emt 0:00:10]} Rc8 {[%emt 0:00:13]} 19. O-O-O {[%emt 0:00:10]} Qd6 {[%emt 0:00:26]} 20. Qe3 {[%emt 0:00:17]} Rc7 {[%emt 0:00:11]} 21. Kb1 {[%emt 0:00:17]} Rfc8 {[%emt 0:00:06]} 22. Rd2 {[%emt 0:00:04]} a5 {[%emt 0:00:05]} 23. f4 {[%emt 0:00:14]} a4 {[%emt 0:00:07]} 24. f5 {[%emt 0:00:20]} b3 {[%emt 0:00:17]} 25. cxb3 {[%emt 0:00:13]} axb3 {[%emt 0:00:04]} 26. Qxb3 {[%emt 0:00:11]} Rc4 {[%emt 0:00:05]} 27. Qe3 {[%emt 0:00:07]} Rb8 {[%emt 0:00:05]} 28. Rg1 {[%emt 0:00:07]} Qb6 {[%emt 0:00:07]} 29. fxg6 {[%emt 0:00:01]} fxg6 {[%emt 0:00:01]} 30. Qxe7+ {[%emt 0:00:03]} Kh8 {[%emt 0:00:11]} 31. Qe5+ {[%emt 0:00:01]} Kh7 {[%emt 0:00:03]} 32. Qe7+ {[%emt 0:00:01]} Kh8 {[%emt 0:00:01]} 33. Qg5 {[%emt 0:00:01]} Rb4 {[%emt 0:00:03]} 34. Qxg6 {[%emt 0:00:03]} Rxb2+ {[%emt 0:00:03]} 35. Kc1 Qxg6 36. Rxg6 Rb1+ 37. Kc2 R8b2+ 38. Kc3 0-1

[Event "German-ch Blitz Women 2022"]
[Site "Magdeburg"]
[Date "2022.08.13"]
[Round "23.1"]
[White "Staerk, Elisa"]
[Black "Paehtz, Elisabeth"]
[Result "1/2-1/2"]
[ECO "A48"]
[WhiteElo "1947"]
[BlackElo "2484"]
[Annotator "TA"]
[PlyCount "95"]
[EventDate "2022.08.10"]
[EventType "tourn"]
[EventCountry "GER"]
[SourceTitle "playchess.com"]
[Source "ChessBase"]
[SourceQuality "1"]
[TimeControl "180+2"]

{[%evp 16,95,55,39,43,48,56,39,45,40,39,43,54,53,39,0,42,18,20,8,49,58,102,101,106,97,98,83,75,70,82,44,45,45,90,69,67,59,83,33,67,61,164,178,178,108,175,112,107,114,112,16,13,0,10,4,8,-8,-9,-12,-14,-20,0,-102,-102,-102,-94,-552,0,0,0,0,0,0,0,0,0,0,0,0,0,0]} 1. d4 {[%emt 0:00:01]} Nf6 {[%emt 0:00:02]} 2. Nf3 {[%emt 0:00:00]} g6 3. c4 Bg7 4. Nc3 O-O 5. e4 c6 {[%emt 0:00:05]} 6. Be2 {[%emt 0:00:03]} d5 {[%emt 0:00:01]} 7. cxd5 {[%emt 0:00:03]} cxd5 {[%emt 0:00:01]} 8. e5 {[%emt 0:00:01]} Ne8 {[%emt 0:00:06]} 9. O-O {[%emt 0:00:02]} Nc6 {[%emt 0:00:00] E70: King's Indian: Miscellaneous lines with 4 e4, including 5 Nge2 and 5 Bd3 0-0 6 Nge2.} 10. Be3 {[%emt 0:00:05]} Nc7 {[%emt 0:00:02]} 11. Qb3 {[%emt 0:00:11]} a6 {[%emt 0:00:06] [#] White is slightly better.} 12. a4 $146 {[%emt 0:00:04]} ({Predecessor:} 12. Rac1 f6 13. Rfd1 Kh8 14. exf6 exf6 15. Bf4 Ne6 16. Bg3 {½-½ (67) Groleau,G (2189)-Mai,T (1839) Gatineau 2004}) 12... Rb8 {[%emt 0:00:10]} 13. Rac1 {[%emt 0:00:11]} Be6 {[%emt 0:00:14]} 14. Rfd1 {[%emt 0:00:23]} Qd7 {[%emt 0:00:08]} 15. Qc2 {[%emt 0:00:21]} h6 {[%emt 0:00:06]} 16. Nd2 {[%emt 0:00:04][%cal Bf3d2,Bd2b3,Bb3c5][%mdl 32]} Bf5 {[%emt 0:00:15]} 17. Bd3 {[%emt 0:00:02]} Nb4 {[%emt 0:00:01]} 18. Bxf5 {[%emt 0:00:07]} gxf5 {[%emt 0:00:03]} 19. Qb1 {[%emt 0:00:11]} e6 {[%emt 0:00:08]} 20. Nb3 {[%emt 0:00:07]} b6 {[%emt 0:00:06]} 21. a5 {[%emt 0:00:03]} bxa5 {[%emt 0:00:05]} 22. Nc5 {[%emt 0:00:07]} Qe7 {[%emt 0:00:04]} 23. g3 {[%emt 0:00:10][%mdl 1024] White has strong compensation.} Na8 {[%emt 0:00:15]} 24. Qa1 {[%emt 0:00:12]} Qd8 {[%emt 0:00:06]} 25. N3a4 {[%emt 0:00:11] White is much more active. The black rooks are badly placed.} Re8 {[%emt 0:00:05]} 26. Bd2 {[%emt 0:00:05]} Nc7 {[%emt 0:00:27] [#]} 27. Nc3 {[%emt 0:00:11]} (27. Nb3 $1 $16 {[%cal Rb3a5]}) 27... Nc6 {[%emt 0:00:08]} 28. Ne2 {[%emt 0:00:06]} Nb4 {[%emt 0:00:24]} (28... Re7 $14) 29. Qxa5 $18 {[%emt 0:00:13]} Nc6 {[%emt 0:00:01]} 30. Qa1 {[%emt 0:00:11]} (30. Qa4 $18 Rb6 31. Rc2) 30... Ra8 {[%emt 0:00:16] [#]} (30... Re7 $16) 31. Ba5 {[%emt 0:00:07]} (31. Na4 $1 $18 Na7 32. Ba5) 31... Nxa5 $16 {[%emt 0:00:03]} 32. Qxa5 {[%emt 0:00:02] Hoping for Nb7.} Nb5 {[%emt 0:00:02]} 33. Qxd8 {[%emt 0:00:06]} (33. Qd2 $16) 33... Rexd8 $11 {[%emt 0:00:01][%cal Be8d8,Bd8b8,Bb8b2,Bb2d2,Bd2d4][%mdl 32]} 34. Nc3 {[%emt 0:00:06]} Nxc3 {[%emt 0:00:06]} 35. Rxc3 {[%emt 0:00:06]} Rdb8 {[%emt 0:00:02]} 36. Ra3 {[%emt 0:00:03]} Rxb2 {[%emt 0:00:05]} 37. Rxa6 {[%emt 0:00:01]} Rxa6 {[%emt 0:00:01]} 38. Nxa6 {[%emt 0:00:01][%mdl 4096] Endgame KRB-KRN} Bf8 {[%emt 0:00:01]} 39. Rc1 {[%emt 0:00:03]} (39. Nc7 $11 {remains equal.}) 39... Rd2 $17 {[%emt 0:00:04]} 40. Rc8 {[%emt 0:00:05]} Rxd4 {[%emt 0:00:02]} 41. Nc5 $2 {[%emt 0:00:03][%mdl 8192] Inhibits Ra4.} (41. Nb8 $17 Rc4 42. Rd8) 41... Kg7 $2 {[%emt 0:00:04]} ({Black should try} 41... Rc4 $19 42. Rxf8+ Kxf8) 42. Nd7 $1 $11 {[%emt 0:00:01] The position is equal.} Be7 {[%emt 0:00:07]} 43. Re8 {[%emt 0:00:05]} Bb4 {[%emt 0:00:17]} 44. Nf6 {[%csl Gf6][%cal Re8g8]} h5 {[%emt 0:00:03]} 45. Rg8+ {[%emt 0:00:03]} Kh6 {[%emt 0:00:01]} 46. Rh8+ {[%emt 0:00:04]} Kg6 {[%emt 0:00:02]} 47. Rg8+ {[%emt 0:00:02]} Kh6 {[%emt 0:00:01]} 48. Rh8+ {[%emt 0:00:01] Quite a comeback for White.  Weighted Error Value: White=0.37/Black=0.28 (precise)} 1/2-1/2

[Event "German-ch Blitz Women 2022"]
[Site "Magdeburg"]
[Date "2022.08.13"]
[Round "23.2"]
[White "Melamed, Tatjana"]
[Black "Zschischang, Marine"]
[Result "1-0"]
[ECO "C10"]
[WhiteElo "2380"]
[BlackElo "2083"]
[Annotator "TA"]
[PlyCount "91"]
[EventDate "2022.08.10"]
[EventType "tourn"]
[EventCountry "GER"]
[SourceTitle "playchess.com"]
[Source "ChessBase"]
[SourceQuality "1"]
[TimeControl "180+2"]

{[%evp 11,91,17,19,14,19,12,16,-46,-6,-50,-45,-33,0,0,0,0,-12,-33,-30,-101,0,0,0,-15,4,-52,-37,-46,-33,-78,0,0,0,0,85,53,77,75,68,59,71,2,4,0,0,0,52,54,67,66,67,73,93,107,102,95,95,97,126,126,126,127,169,170,431,421,361,138,243,212,212,102,103,102,97,20,38,25,188,196,486,304]} 1. e4 {[%emt 0:00:01]} e6 {[%emt 0:00:00]} 2. d4 d5 3. Nd2 {[%emt 0:00:03]} dxe4 {[%emt 0:00:01]} 4. Nxe4 Nd7 5. Bd3 {[%emt 0:00:08]} Ngf6 {[%emt 0:00:01]} 6. Qe2 {[%emt 0:00:02]} c5 {[%emt 0:00:04] The main line 6...c5 scores better than 6...Be7.} 7. Nxf6+ {[%emt 0:00:08] C10: French with 3 Nc3: Unusual Black 3rd moves and 3...dxe4.} Nxf6 {[%emt 0:00:03]} 8. Nf3 {[%emt 0:00:04]} cxd4 {[%emt 0:00:02] [#]} 9. Ne5 $146 {[%emt 0:00:02]} (9. O-O $11) ({Predecessor:} 9. Bd2 Qd5 10. c4 Qd8 11. O-O-O Be7 12. g4 a6 13. Kb1 Nd7 14. Bc2 Qb6 15. Bc1 {1-0 (23) Savchenko,B (2562)-Timofeev,A (2580) Sochi 2018}) 9... Bb4+ {[%emt 0:00:08]} 10. Kf1 {[%emt 0:00:23]} (10. Bd2 Bxd2+ 11. Qxd2 O-O $15) (10. c3 $5 dxc3 11. Bb5+ Kf8 12. O-O $17) 10... a6 {[%emt 0:00:10]} 11. h4 {[%emt 0:00:06]} Bd7 {[%emt 0:00:06]} 12. h5 {[%emt 0:00:04]} h6 {[%emt 0:00:05]} 13. Rh3 {[%emt 0:00:08]} Qc7 {[%emt 0:00:28]} 14. Rg3 {[%emt 0:00:21]} Bd6 {[%emt 0:00:02]} 15. f4 {[%emt 0:00:06]} (15. Nxd7 $11 Qxd7 16. Rxg7) 15... Bf8 {[%emt 0:00:16]} (15... O-O $17 16. a4 Bc6) 16. Bd2 $11 {[%emt 0:00:04]} Bc6 {[%emt 0:00:05]} 17. Re1 {[%emt 0:00:05][%cal Oe5f7] [#] Threatens to win with Nxf7!} O-O-O {[%emt 0:00:04]} 18. Kg1 {[%emt 0:00:07]} (18. c3 $11) 18... Nd5 {[%emt 0:00:06]} 19. a3 {[%emt 0:00:04]} Be8 {[%emt 0:00:29]} 20. Qe4 {[%emt 0:00:13]} Ne3 {[%emt 0:00:08]} ({Black should try} 20... Rg8 $17) 21. Bxe3 {[%emt 0:00:04]} dxe3 {[%emt 0:00:01]} 22. b4 $1 {[%emt 0:00:02]} Bc6 {[%emt 0:00:12]} (22... Kb8 $11 {keeps the balance.}) 23. Nxc6 {[%emt 0:00:03] White is more active.} (23. Qxe3 {seems wilder.} Kb8 24. c4 Rg8 25. Bh7) 23... Qxc6 {[%emt 0:00:03]} 24. Qxc6+ {[%emt 0:00:01]} ({Much weaker is} 24. Qxe3 $6 Kb8 $11) (24. Rexe3 Qb6 $11) (24. Rgxe3 Qxe4 25. Rxe4 Kb8 $11) 24... bxc6 {[%emt 0:00:01][%cal Bb7c6,Bc6c5][%mdl 32]} 25. Bxa6+ {[%emt 0:00:01]} Kc7 {[%emt 0:00:01]} 26. Bd3 {[%emt 0:00:02]} ({Better is} 26. Rexe3 $16 Rd1+ 27. Bf1) 26... c5 {[%emt 0:00:01]} 27. b5 {[%emt 0:00:08]} ({Avoid the trap} 27. Rgxe3 $2 cxb4 28. Re4 Bc5+ 29. Kf1 bxa3 $17) 27... Kb6 {[%emt 0:00:04][%cal Oc5c4]} 28. Kf1 {[%emt 0:00:10]} ({Of course not} 28. Rgxe3 c4 29. Bxc4 Bc5 $17) 28... Ra8 {[%emt 0:00:14]} (28... c4 $11 29. Bxc4 Rd4) 29. Rgxe3 $14 {[%emt 0:00:08]} Rxa3 {[%emt 0:00:04]} 30. f5 {[%emt 0:00:00]} c4 $1 {[%emt 0:00:14]} 31. Bxc4 {[%emt 0:00:03]} Rxe3 {[%emt 0:00:01]} 32. Rxe3 {[%emt 0:00:01][%mdl 4096] Endgame KRB-KRB} Bc5 {[%emt 0:00:20]} 33. Re1 {[%emt 0:00:03]} exf5 {[%emt 0:00:03]} 34. Ra1 {[%emt 0:00:03] Prevents Ra8.} Rd8 {[%emt 0:00:07]} 35. Ra6+ {[%emt 0:00:01]} Kb7 {[%emt 0:00:01]} 36. Bxf7 {[%emt 0:00:07]} Bb6 {[%emt 0:00:01]} 37. c4 {[%emt 0:00:03]} Rd4 $2 {[%emt 0:00:06] [#]} (37... Rd6 {is a better defense.} 38. Bd5+ Kc7) 38. Bd5+ $18 {[%emt 0:00:02]} Kc7 {[%emt 0:00:03]} 39. Ra8 $2 {[%emt 0:00:05]} (39. Ke2 $18 {is the precise move to win.}) 39... Rh4 {[%emt 0:00:04]} (39... Rd2 $16 40. Ke1 Be3) 40. Rg8 {[%emt 0:00:10]} Bd4 {[%emt 0:00:03]} 41. Rf8 {[%emt 0:00:09]} (41. Ke2 $18 {and White stays clearly on top.}) 41... Rxh5 $16 {[%emt 0:00:02]} 42. Rf7+ {[%emt 0:00:01]} Kb6 {[%emt 0:00:01]} 43. Rb7+ {[%emt 0:00:02]} (43. Ke2 $16) 43... Kc5 $11 {[%emt 0:00:01]} 44. Rc7+ {[%emt 0:00:02]} Kd6 $2 {[%emt 0:00:05]} (44... Kb4 $11) 45. Rc6+ $18 {[%emt 0:00:01]} Ke5 $2 {[%emt 0:00:01]} (45... Kd7 46. Ke2 Rg5) 46. b6 {[%emt 0:00:05] Weighted Error Value: White=0.27 (precise) /Black=0.42} 1-0

[Event "German-ch Blitz Women 2022"]
[Site "Magdeburg"]
[Date "2022.08.13"]
[Round "23.3"]
[White "Schulze, Lara"]
[Black "Schuster, Rebekka"]
[Result "1-0"]
[ECO "C05"]
[WhiteElo "2292"]
[BlackElo "1815"]
[Annotator "TA"]
[PlyCount "72"]
[EventDate "2022.08.10"]
[EventType "tourn"]
[EventCountry "GER"]
[SourceTitle "playchess.com"]
[Source "ChessBase"]
[SourceQuality "1"]
[TimeControl "180+2"]

{[%evp 14,72,34,31,42,37,38,35,43,49,71,66,64,7,28,33,62,-41,8,10,27,35,211,0,0,0,106,107,217,217,216,216,256,252,277,226,267,264,248,206,302,222,228,145,131,82,393,346,354,152,165,98,161,139,168,105,191,177,218,207,196]} 1. e4 {[%cal Be2e4,Be4e5][%mdl 32]} e6 2. d4 {[%emt 0:00:04]} d5 {[%emt 0:00:00]} 3. Nd2 {[%emt 0:00:01]} Nf6 {[%emt 0:00:01]} 4. e5 {[%emt 0:00:01]} Nfd7 {[%emt 0:00:01]} 5. c3 {[%emt 0:00:01]} c5 {[%emt 0:00:00]} 6. f4 {[%emt 0:00:01]} Nc6 {[%emt 0:00:01]} 7. Ndf3 {[%emt 0:00:01]} Be7 {[%emt 0:00:03]} 8. Bd3 {[%emt 0:00:02]} f6 {[%emt 0:00:07] C05: French Tarrasch: 3...Nf6 4 e5 Nfd7, 5 f4 and 5 Bd3 sidelines.} 9. Ne2 {[%emt 0:00:02]} O-O {[%emt 0:00:03]} 10. O-O {[%emt 0:00:03]} a6 {[%emt 0:00:17] White is slightly better.} 11. Kh1 {[%emt 0:00:04]} b5 {[%emt 0:00:03] [#]} 12. Bc2 $146 {[%emt 0:00:21]} ({Predecessor:} 12. Qe1 Bb7 13. Bd2 f5 14. Be3 Rf7 15. Bf2 Nf8 16. dxc5 a5 17. Bxb5 Nd7 18. b4 axb4 19. cxb4 Qc7 20. Ned4 Ba6 21. Bxa6 Rxa6 22. Nxe6 Qb8 23. b5 Ra5 24. bxc6 {1-0 (24) Bui,N (1363)-Svane,F (1031) Magdeburg 2014}) 12... b4 {[%emt 0:00:10]} 13. Qd3 {[%emt 0:00:02]} ({White should play} 13. c4 $14) 13... f5 $11 {[%emt 0:00:10]} 14. Ng5 $40 {[%emt 0:00:06][%mdl 128] Black needs to defend precisely.} Nb6 {[%emt 0:00:21]} 15. Be3 {[%emt 0:00:06] White is more active.} (15. Qh3 $14 Bxg5 16. fxg5) 15... cxd4 {[%emt 0:00:13]} (15... Nc4 $15 16. Bc1 bxc3 17. Qxc3 cxd4 18. Nxd4 Nxd4 19. Qxd4 Qc7) 16. Nxd4 {[%emt 0:00:03]} Nxd4 {[%emt 0:00:13]} 17. Bxd4 {[%emt 0:00:03][%cal Og2g4]} a5 $2 {[%emt 0:00:01] [#]} ({Better is} 17... Bxg5 $14 18. fxg5 Bd7) 18. Nf3 $2 {[%emt 0:00:17]} ({White must play} 18. Nxh7 $1 $18 {[%mdl 512]} Kxh7 19. g4) 18... Ba6 {[%emt 0:00:08]} 19. Qe3 {[%emt 0:00:02]} Bxf1 {[%emt 0:00:05]} (19... Nc4 $11 {keeps the balance.} 20. Qc1 bxc3 21. Bxc3 Qd7) 20. Bxb6 $16 {[%emt 0:00:01]} Qc8 {[%emt 0:00:11]} 21. Rxf1 $18 {[%emt 0:00:02]} bxc3 {[%emt 0:00:06]} 22. bxc3 {[%emt 0:00:03]} ({Wrong is} 22. Qxc3 $2 Qa6 23. Rc1 Qxb6 $19) 22... Qc6 {[%emt 0:00:16]} 23. Bd4 {[%emt 0:00:10]} Rab8 {[%emt 0:00:03]} 24. Qc1 {[%emt 0:00:28]} Rb7 {[%emt 0:00:12]} 25. Qd1 {[%emt 0:00:19]} Rfb8 {[%emt 0:00:03]} 26. Bb3 {[%emt 0:00:03]} Ra8 {[%emt 0:00:14]} (26... g6 $142 27. Bc2 Ba3) 27. Ba4 {[%emt 0:00:10]} Qc4 {[%emt 0:00:09]} 28. Nd2 {[%emt 0:00:12]} Qxa2 {[%emt 0:00:23] [#]} 29. Bc6 {[%emt 0:00:01] A strong pair of Bishops.} ({White should try} 29. Bb3 $1 {[%cal Rb3a2]} Rxb3 30. Nxb3) 29... Rba7 $2 {[%emt 0:00:08][%mdl 8192]} 30. Bxa7 {[%emt 0:00:14]} Rxa7 {[%emt 0:00:00]} 31. Qb1 {[%emt 0:00:05]} Qxb1 $16 {[%emt 0:00:13]} 32. Nxb1 {[%emt 0:00:03]} (32. Rxb1 $18 {Rb8+ is the strong threat.} a4 33. g4) 32... Rc7 {[%emt 0:00:05]} (32... a4 $16) 33. Ba4 {[%emt 0:00:03]} Rc4 {[%emt 0:00:00]} 34. Bb3 {[%emt 0:00:01]} (34. Bb5 $18 Rc5 35. c4) 34... Rc8 {[%emt 0:00:07]} (34... Re4 $16) 35. Rd1 {[%emt 0:00:03]} Rb8 {[%emt 0:00:01]} 36. Nd2 {[%emt 0:00:05]} Kf7 {Weighted Error Value: White=0.43/Black=0.64} 1-0

[Event "German-ch Blitz Women 2022"]
[Site "Magdeburg"]
[Date "2022.08.13"]
[Round "23.4"]
[White "Nikolaeva, Mariya A"]
[Black "Fock, Sana"]
[Result "1-0"]
[ECO "B91"]
[WhiteElo "1309"]
[BlackElo "1807"]
[Annotator "NA RC COMBH"]
[PlyCount "181"]
[EventDate "2022.08.10"]
[EventType "tourn"]
[EventCountry "GER"]
[SourceTitle "playchess.com"]
[Source "ChessBase"]
[SourceQuality "1"]
[TimeControl "180+2"]

1. e4 {[%emt 0:00:01]} c5 {[%emt 0:00:00]} 2. Nf3 {[%emt 0:00:01]} d6 {[%emt 0:00:01]} 3. d4 {[%emt 0:00:01]} cxd4 {[%emt 0:00:01]} 4. Nxd4 {[%emt 0:00:01]} Nf6 {[%emt 0:00:02]} 5. Nc3 {[%emt 0:00:02]} a6 {[%emt 0:00:00]} 6. g3 {[%emt 0:00:07]} e5 {[%emt 0:00:03]} 7. Nde2 {[%emt 0:00:03]} Be7 {[%emt 0:00:02]} 8. Bg2 {[%emt 0:00:01]} O-O {[%emt 0:00:05]} 9. h3 {[%emt 0:00:02]} Be6 {[%emt 0:00:04]} 10. O-O {[%emt 0:00:02]} Nbd7 {[%emt 0:00:09]} 11. Kh2 {[%emt 0:00:01]} b5 {[%emt 0:00:04]} 12. a3 {[%emt 0:00:02]} Nb6 {[%emt 0:00:03]} 13. f4 {[%emt 0:00:03]} Bd7 {[%emt 0:00:17]} 14. f5 {[%emt 0:00:04]} Bc6 {[%emt 0:00:01]} 15. g4 {[%emt 0:00:07]} d5 {[%emt 0:00:06]} 16. exd5 {[%emt 0:00:38]} Nbxd5 {[%emt 0:00:12]} 17. Nxd5 {[%emt 0:00:09]} Bxd5 {[%emt 0:00:08]} 18. Be3 {[%emt 0:00:10]} Bxg2 {[%emt 0:00:07]} 19. Kxg2 {[%emt 0:00:02]} Qc7 {[%emt 0:00:08]} 20. Ng3 {[%emt 0:00:06]} Rfd8 {[%emt 0:00:08]} 21. Qe2 {[%emt 0:00:02]} Rac8 {[%emt 0:00:06]} 22. c3 {[%emt 0:00:02]} Qc6+ {[%emt 0:00:04]} 23. Kh2 {[%emt 0:00:01]} Bc5 {[%emt 0:00:11]} 24. Rad1 {[%emt 0:00:05]} Rxd1 {[%emt 0:00:07]} 25. Rxd1 {[%emt 0:00:01]} Bxe3 {[%emt 0:00:09]} 26. Qxe3 {[%emt 0:00:02]} Qc7 {[%emt 0:00:14]} 27. Re1 {[%emt 0:00:18]} e4 {[%emt 0:00:18]} 28. Kg2 {[%emt 0:00:17]} Re8 {[%emt 0:00:08]} 29. Rd1 {[%emt 0:00:04]} Rd8 {[%emt 0:00:14]} 30. Rxd8+ {[%emt 0:00:11]} Qxd8 {[%emt 0:00:02]} 31. Nxe4 {[%emt 0:00:10]} Nxe4 {[%emt 0:00:13]} 32. Qxe4 {[%emt 0:00:04]} h6 {[%emt 0:00:03]} 33. Qd4 {[%emt 0:00:15]} Qa8+ {[%emt 0:00:05]} 34. Kg3 {[%emt 0:00:03]} Qb8+ {[%emt 0:00:02]} 35. Kg2 {[%emt 0:00:06]} Qe8 {[%emt 0:00:02]} 36. Kf3 {[%emt 0:00:06]} Qe1 {[%emt 0:00:04]} 37. Qf2 {[%emt 0:00:07]} Qd1+ {[%emt 0:00:02]} 38. Qe2 {[%emt 0:00:05]} Qd5+ {[%emt 0:00:04]} 39. Kf2 {[%emt 0:00:05]} Qc5+ {[%emt 0:00:03]} 40. Qe3 {[%emt 0:00:01]} Qc7 {[%emt 0:00:06]} 41. Qe8+ {[%emt 0:00:06]} Kh7 {[%emt 0:00:01]} 42. Kf3 {[%emt 0:00:16]} Qc4 {[%emt 0:00:06]} 43. Qe4 {[%emt 0:00:06]} Qf1+ {[%emt 0:00:02]} 44. Kg3 {[%emt 0:00:02]} Qg1+ {[%emt 0:00:01]} 45. Qg2 {[%emt 0:00:01]} Qe3+ {[%emt 0:00:02]} 46. Kh2 {[%emt 0:00:03]} Qe5+ {[%emt 0:00:02]} 47. Kh1 {[%emt 0:00:02]} Qe1+ {[%emt 0:00:02]} 48. Kh2 {[%emt 0:00:01]} Qe5+ {[%emt 0:00:03]} 49. Kg1 {[%emt 0:00:01]} Qe1+ {[%emt 0:00:03]} 50. Qf1 {[%emt 0:00:02]} Qe3+ {[%emt 0:00:02]} 51. Qf2 {[%emt 0:00:02]} Qxh3 {[%emt 0:00:03]} 52. Qg2 {[%emt 0:00:02]} Qe3+ {[%emt 0:00:01]} 53. Kh1 {[%emt 0:00:02]} Qc1+ {[%emt 0:00:02]} 54. Kh2 {[%emt 0:00:01]} Qf4+ {[%emt 0:00:01]} 55. Kh1 {[%emt 0:00:01]} Qg5 {[%emt 0:00:02]} 56. Qe2 {[%emt 0:00:06]} Qh4+ {[%emt 0:00:03]} 57. Kg1 {[%emt 0:00:02]} Qg3+ {[%emt 0:00:01]} 58. Kf1 {[%emt 0:00:02]} Qf4+ {[%emt 0:00:02]} 59. Ke1 {[%emt 0:00:01]} Qc1+ {[%emt 0:00:01]} 60. Kf2 {[%emt 0:00:01]} Qf4+ {[%emt 0:00:03]} 61. Ke1 {[%emt 0:00:01]} Qg3+ {[%emt 0:00:01]} 62. Kd1 {[%emt 0:00:01]} Qd6+ {[%emt 0:00:03]} 63. Kc2 {[%emt 0:00:01]} Qd5 {[%emt 0:00:04]} 64. b3 {[%emt 0:00:05]} Qd6 {[%emt 0:00:02]} 65. Kb2 {[%emt 0:00:01]} Qf4 {[%emt 0:00:02]} 66. c4 {[%emt 0:00:03]} Qd4+ {[%emt 0:00:01]} 67. Ka2 {[%emt 0:00:02]} bxc4 {[%emt 0:00:02]} 68. bxc4 {[%emt 0:00:01]} Qc5 {[%emt 0:00:03]} 69. Kb3 {[%emt 0:00:02]} a5 {[%emt 0:00:01]} 70. Qe4 {[%emt 0:00:05]} Qf2 {[%emt 0:00:05]} 71. f6+ {[%emt 0:00:02]} g6 {[%emt 0:00:01]} 72. Qe7 {[%emt 0:00:02]} Qf3+ {[%emt 0:00:05]} 73. Ka4 {[%emt 0:00:02]} Qc6+ {[%emt 0:00:01]} 74. Kxa5 {[%emt 0:00:02]} Qxc4 {[%emt 0:00:08]} 75. a4 {[%emt 0:00:02]} Qd5+ {[%emt 0:00:02]} 76. Kb4 {[%emt 0:00:01]} Qd4+ {[%emt 0:00:02]} 77. Kb5 {[%emt 0:00:01]} Qb2+ {[%emt 0:00:02]} 78. Ka5 {[%emt 0:00:01]} Qb3 {[%emt 0:00:05]} 79. Qd8 {[%emt 0:00:06]} Qc3+ {[%emt 0:00:03]} 80. Kb5 {[%emt 0:00:02]} Qb3+ {[%emt 0:00:03]} 81. Ka5 {[%emt 0:00:01]} Qc3+ {[%emt 0:00:02]} 82. Ka6 {[%emt 0:00:03]} Qc4+ {[%emt 0:00:01]} 83. Kb6 {[%emt 0:00:03]} Qb4+ {[%emt 0:00:01]} 84. Kc6 {[%emt 0:00:05]} Qxa4+ {[%emt 0:00:01]} 85. Kc5 Qa3+ 86. Kc6 Qc3+ 87. Kb5 Qb3+ 88. Kc5 Qa3+ 89. Kb5 Qb3+ 90. Kc5 Qa3+ 91. Kb5 1-0

[Event "German-ch Blitz Women 2022"]
[Site "Magdeburg"]
[Date "2022.08.13"]
[Round "23.5"]
[White "Zhou, Lepu Coco"]
[Black "Heil, Marina"]
[Result "1-0"]
[ECO "B07"]
[WhiteElo "1986"]
[BlackElo "1926"]
[Annotator "TA"]
[PlyCount "43"]
[EventDate "2022.08.10"]
[EventType "tourn"]
[EventCountry "GER"]
[SourceTitle "playchess.com"]
[Source "ChessBase"]
[SourceQuality "1"]
[TimeControl "180+2"]

{[%evp 10,43,24,13,36,41,43,43,50,13,40,30,33,-16,46,47,55,-72,128,131,137,135,207,140,105,94,511,424,762,627,826,782,944,697,1132,1116]} 1. e4 {[%emt 0:00:01]} d6 {[%emt 0:00:00]} 2. d4 {[%emt 0:00:02]} Nf6 {[%emt 0:00:02]} 3. Nc3 {[%emt 0:00:01]} Nbd7 {[%emt 0:00:01]} 4. Be3 {[%emt 0:00:03]} e5 {[%emt 0:00:01]} 5. Nf3 {[%emt 0:00:04]} Be7 {[%emt 0:00:04]} 6. Bc4 {[%emt 0:00:02][%cal Oc4f7]} h6 {[%emt 0:00:02] C41: Philidor Defence.} 7. a4 {[%emt 0:00:05][%cal Ba2a4,Ba4a5][%mdl 32]} c6 {[%emt 0:00:01] [#]} 8. a5 $146 {[%emt 0:00:02]} ({Predecessor:} 8. h3 Qc7 9. Bb3 Nf8 10. Qb1 Ng6 11. Qa2 O-O 12. Rd1 b6 13. g4 Nh7 14. Ne2 {0-1 (52) Koziorowicz,M (2274)-Bebel,A (2294) Bydgoszcz 2021}) 8... Qc7 {[%emt 0:00:06] White is slightly better.} 9. dxe5 {[%emt 0:00:06]} dxe5 {[%emt 0:00:02]} 10. O-O {[%emt 0:00:03]} Nf8 {[%emt 0:00:03]} 11. Qd2 {[%emt 0:00:13]} (11. h3 $14 {feels stronger.}) 11... g5 {[%emt 0:00:02]} (11... Ne6 $11) 12. Rfd1 $14 {[%emt 0:00:09]} Ng6 {[%emt 0:00:03]} 13. Ne2 {[%emt 0:00:08]} (13. Ne1 $14 {stays ahead.}) 13... Nf4 $2 {[%emt 0:00:02] [#]} (13... Nxe4 $17 {and life is bright.} 14. Qe1 (14. Qd3 Nd6 $15) 14... O-O) 14. Bxf4 $16 {[%emt 0:00:28]} gxf4 {[%emt 0:00:01]} 15. Qc3 {[%emt 0:00:02] White is more active.} Bd6 {[%emt 0:00:28]} (15... Nxe4 $16 {was necessary.} 16. Qxe5 Qxe5 17. Nxe5 Bc5) 16. Nxf4 {[%emt 0:00:15][%cal Od1d6] And now Rxd6! would win.} ({Much less strong is} 16. Qd3 Be7) 16... Nxe4 {[%emt 0:00:21]} 17. Qe3 {[%emt 0:00:02]} Nxf2 {[%emt 0:00:44][%mdl 8192] This costs Black the game.} (17... Bf5 $16 18. Nd3 a6) 18. Kxf2 $18 {[%emt 0:00:08] White is clearly winning.} Kf8 {[%emt 0:00:30]} (18... Bf5 $142 19. Nh5 Kf8) 19. Nd3 {[%emt 0:00:30][%cal Rd3e5]} f6 {[%emt 0:00:08]} 20. Nh4 {[%emt 0:00:19] [#] Strongly threatening Ng6+.} Rh7 {[%emt 0:00:27]} 21. Ng6+ {[%emt 0:00:08]} Kg7 {[%emt 0:00:06]} 22. Qg3 {[%emt 0:00:09] Inhibits Bg4.  Weighted Error Value: White=0.54/Black=1.06} 1-0